fUST/lending_fUST_20250720
["ID","MTS","AMOUNT","RATE_DAILY","PERIOD"]
[373379668,1752977439799,-219.176812,0.00018869,2]
[373379669,1752977439810,-152.252211,0.00018869,2]
[373379670,1752977439819,-707.43,0.00018869,2]
[373379671,1752977439828,-151.694813,0.00018869,2]
[373379672,1752977439838,-151.0,0.00018869,2]
[373379673,1752977439848,-460.0,0.00018869,2]
[373379674,1752977439857,-151.652042,0.00018869,2]
[373379675,1752977439867,-151.0,0.00018869,2]
[373379676,1752977439876,-151.0,0.00018869,2]
[373379677,1752977439885,-217.63745132,0.00018869,2]
[373379678,1752977439901,-242.36254868,0.00018869,2]
[373379679,1752977439911,-225.870134,0.00018869,2]
[373379680,1752977439920,-225.870134,0.00018869,2]
[373379682,1752977439930,-151.0,0.00018869,2]
[373379683,1752977439939,-1381.59,0.00018869,2]
[373379684,1752977439949,-460.0,0.00018869,2]
[373379685,1752977439959,-513.6,0.0001887,2]
[373379686,1752977439968,-278.44477995,0.00018872,2]
[373379687,1752977439978,-500.0,0.00018872,2]
[373379688,1752977439987,-500.0,0.00018872,2]
[373379689,1752977439996,-460.0,0.00018872,2]
[373379690,1752977440005,-151.0,0.00018872,2]
[373379691,1752977440014,-531.22,0.00018872,2]
[373379692,1752977440024,-611.3323038,0.00018873,2]
[373379693,1752977440033,-500.0,0.00018873,2]
[373379694,1752977440179,-504.95505631,0.00018873,2]
[373379695,1752977440189,-500.0,0.00018873,2]
[373379696,1752977440198,-538.05974768,0.00018873,2]
[373379697,1752977440207,-510.56493989,0.00018873,2]
[373379698,1752977440217,-501.83223851,0.00018873,2]
[373379699,1752977440227,-210.90989795,0.00018873,2]
[373379700,1752977440241,-500.0,0.00018873,2]
[373379701,1752977440250,-502.39980547,0.00018873,2]
[373379702,1752977440260,-1038.51718158,0.00018889,2]
[373379703,1752977440270,-151.0,0.000189,2]
[373379705,1752977440280,-162.76837987,0.000189,2]
[373379707,1752977440289,-8585.20437232,0.000189,2]
[373379709,1752977440299,-500.0,0.00019043,2]
[373379710,1752977440311,-500.0,0.00019043,2]
[373379711,1752977440322,-500.0,0.00019043,2]
[373379712,1752977440334,-500.0,0.00019043,2]
[373379713,1752977440344,-151.0,0.00019044,2]
[373379715,1752977440353,-151.0,0.00019044,2]
[373379717,1752977440363,-151.0,0.00019044,2]
[373379719,1752977440372,-460.0,0.00019118,2]
[373379721,1752977440382,-714.49,0.00019119,2]
[373379723,1752977440391,-460.0,0.00019119,2]
[373379725,1752977440400,-741.54,0.00019119,2]
[373379726,1752977440410,-1329.16,0.00019119,2]
[373379727,1752977440419,-460.0,0.00019119,2]
[373379729,1752977440428,-491.70626592,0.00019119,2]
[373379732,1752977440437,-460.0,0.00019119,2]
[373379734,1752977440446,-535.02390035,0.00019119,2]
[373379737,1752977440455,-489.22160168,0.00019119,2]
[373379739,1752977440464,-530.88560859,0.00019119,2]
[373379741,1752977440474,-460.0,0.00019119,2]
[373379743,1752977440483,-466.18789871,0.0001912,2]
[373379745,1752977440492,-466.09740104,0.0001912,2]
[373379747,1752977440501,-460.0,0.0001912,2]
[373379749,1752977440510,-460.0,0.0001912,2]
[373379752,1752977440520,-460.0,0.0001912,2]
[373379756,1752977440537,-409.21082913,0.0001912,2]
[373379759,1752977440549,-206.45245944,0.0001912,2]
[373379761,1752977440560,-460.0,0.0001912,2]
[373379763,1752977440570,-460.0,0.0001912,2]
[373379765,1752977440580,-489.07883664,0.0001912,2]
[373379767,1752977440589,-151.0,0.0001912,2]
[373379769,1752977440599,-472.40583989,0.0001912,2]
[373379771,1752977440610,-470.56837639,0.0001912,2]
[373379773,1752977440619,-484.82436987,0.0001912,2]
[373379775,1752977440629,-460.0,0.0001912,2]
[373379778,1752977440639,-151.0,0.0001912,2]
[373379780,1752977440649,-180.65498659,0.0001912,2]
[373379782,1752977440659,-460.0,0.0001912,2]
[373379784,1752977440670,-460.0,0.0001912,2]
[373379786,1752977440679,-395.6617048,0.0001912,2]
[373379788,1752977440689,-460.0,0.0001912,2]
[373379790,1752977440698,-298.133821,0.0001912,2]
[373379792,1752977440708,-298.133821,0.0001912,2]
[373379794,1752977440718,-151.0,0.0001912,2]
[373379796,1752977440727,-466.63514975,0.0001912,2]
[373379798,1752977440738,-270.495979,0.0001912,2]
[373379800,1752977440750,-270.495979,0.0001912,2]
[373379802,1752977440760,-151.0,0.0001912,2]
[373379804,1752977440769,-468.24962236,0.0001912,2]
[373379806,1752977440779,-475.58305683,0.0001912,2]
[373379808,1752977440788,-468.07731042,0.0001912,2]
[373379810,1752977440799,-469.80169793,0.0001912,2]
[373379813,1752977440809,-506.85927419,0.0001912,2]
[373379815,1752977440819,-482.46349302,0.0001912,2]
[373379817,1752977440829,-460.0,0.0001912,2]
[373379819,1752977440838,-460.0,0.0001912,2]
[373379821,1752977440848,-468.44093098,0.0001912,2]
[373379823,1752977440858,-468.92398365,0.0001912,2]
[373379824,1752977440869,-508.91542204,0.00019121,2]
[373379825,1752977440879,-515.32344521,0.00019121,2]
[373379826,1752977440888,-622.64280647,0.0001914,2]
[373379829,1752977440902,-78.55719353,0.0001914,2]
[373379831,1752977440912,-523.82,0.0001914,2]
[373379833,1752977440922,-151.0,0.00019141,2]
[373379834,1752977440932,-324.13789781,0.00019141,2]
[373379835,1752977440941,-151.0,0.00019141,2]
[373379837,1752977440951,-151.0,0.00019141,2]
[373379839,1752977440961,-460.0,0.00019141,2]
[373379841,1752977440970,-460.0,0.00019141,2]
[373379843,1752977440980,-151.0,0.00019141,2]
[373379844,1752977440990,-261.23277615,0.00019141,2]
[373379845,1752977440999,-475.00525624,0.00019141,2]
[373379846,1752977441009,-470.83,0.00019141,2]
[373379847,1752977441019,-153.174507,0.00019141,2]
[373379848,1752977441029,-151.0,0.00019141,2]
[373379849,1752977441038,-151.0,0.00019141,2]
[373379850,1752977441048,-460.0,0.00019141,2]
[373379851,1752977441058,-225.870134,0.00019141,2]
[373379852,1752977441068,-225.870134,0.00019141,2]
[373379853,1752977441077,-152.043512,0.00019141,2]
[373379854,1752977441087,-151.0,0.00019141,2]
[373379855,1752977441096,-8585.20437225,0.00019141,2]
[373379856,1752977441105,-460.0,0.00019142,2]
[373379857,1752977441115,-460.0,0.00019142,2]
[373379858,1752977441124,-460.0,0.00019142,2]
[373379859,1752977441134,-479.17640243,0.00019142,2]
[373379860,1752977441143,-496.46117443,0.00019142,2]
[373379861,1752977441154,-151.745177,0.00019142,2]
[373379862,1752977441163,-151.0,0.00019142,2]
[373379863,1752977441173,-151.632726,0.00019142,2]
[373379864,1752977441182,-414.694755,0.00019142,2]
[373379865,1752977441192,-414.694755,0.00019142,2]
[373379866,1752977441201,-468.51326712,0.00019142,2]
[373379867,1752977441210,-707.43,0.00019143,2]
[373379868,1752977441220,-460.0,0.00019143,2]
[373379869,1752977441233,-460.0,0.00019143,2]
[373379870,1752977441243,-1381.59,0.00019143,2]
[373379871,1752977441253,-460.0,0.00019143,2]
[373379872,1752977441262,-513.6,0.00019144,2]
[373379873,1752977441271,-460.0,0.00019146,2]
[373379874,1752977441282,-531.22,0.00019146,2]
[373379875,1752977441292,-178.597975,0.00019178,2]
[373379876,1752977441302,-207.4,0.00019357,2]
[373379877,1752977441313,-151.0,0.00019357,2]
[373379878,1752977441324,-151.0,0.00019357,2]
[373379879,1752977441333,-151.0,0.00019357,2]
[373379880,1752977441342,-151.0,0.00019357,2]
[373379881,1752977441352,-151.0,0.00019357,2]
[373379882,1752977441361,-151.0,0.00019357,2]
[373379883,1752977441371,-151.0,0.00019357,2]
[373379884,1752977441380,-151.0,0.00019357,2]
[373379885,1752977441390,-151.0,0.00019357,2]
[373379886,1752977441399,-151.0,0.00019357,2]
[373379887,1752977441409,-151.0,0.00019357,2]
[373379888,1752977441419,-151.0,0.00019357,2]
[373379889,1752977441428,-151.0,0.00019357,2]
[373379890,1752977441437,-151.0,0.00019357,2]
[373379891,1752977441447,-151.0,0.00019357,2]
[373379892,1752977441456,-157.72973757,0.00019357,2]
[373379893,1752977441465,-858.7802972,0.0001937,2]
[373379894,1752977441475,-22.42255521,0.00019383,2]
[373379895,1752977441488,-1101.379751,0.00019383,2]
[373379896,1752977441499,-270.13541551,0.00019383,2]
[373379897,1752977441510,-567.6133412,0.00019383,2]
[373379898,1752977441522,-6623.65330933,0.00019383,2]
[373379899,1752977441531,-151.0,0.00019383,2]
[373379900,1752977441540,-173.942307,0.00019383,2]
[373379901,1752977441549,-173.942307,0.00019383,2]
[373379902,1752977441560,-151.0,0.00019383,2]
[373379903,1752977441570,-151.0,0.00019383,2]
[373379904,1752977441579,-336.431934,0.00019383,2]
[373379905,1752977441589,-151.0,0.00019383,2]
[373379906,1752977441598,-460.0,0.00019392,2]
[373379907,1752977441607,-714.49,0.00019393,2]
[373379908,1752977441616,-460.0,0.00019393,2]
[373379909,1752977441626,-741.54,0.00019393,2]
[373379910,1752977441634,-1329.16,0.00019393,2]
[373379911,1752977441644,-460.0,0.00019393,2]
[373379912,1752977441653,-460.0,0.00019393,2]
[373379913,1752977441662,-460.0,0.00019393,2]
[373379914,1752977441671,-460.0,0.00019394,2]
[373379915,1752977441681,-460.0,0.00019394,2]
[373379916,1752977441690,-460.0,0.00019394,2]
[373379917,1752977441699,-460.0,0.00019394,2]
[373379918,1752977441709,-460.0,0.00019394,2]
[373379919,1752977441718,-460.0,0.00019394,2]
[373379920,1752977441728,-460.0,0.00019394,2]
[373379921,1752977441737,-414.83540922,0.00019394,2]
[373379922,1752977441746,-701.2,0.00019414,2]
[373379923,1752977441755,-523.82,0.00019414,2]
[373379924,1752977441764,-460.0,0.00019415,2]
[373379925,1752977441774,-460.0,0.00019415,2]
[373379926,1752977441784,-470.83,0.00019415,2]
[373379927,1752977441794,-460.0,0.00019415,2]
[373379928,1752977441804,-460.0,0.00019416,2]
[373379929,1752977441813,-481.78470352,0.00019416,2]
[373379930,1752977441822,-460.0,0.00019416,2]
[373379931,1752977441838,-707.43,0.00019417,2]
[373379932,1752977441850,-175.62117698,0.00019417,2]
[373379933,1752977441859,-1381.59,0.00019417,2]
[373379934,1752977441869,-460.0,0.00019417,2]
[373379935,1752977441878,-513.6,0.00019418,2]
[373379936,1752977441887,-500.0,0.00019419,2]
[373379937,1752977441896,-500.0,0.00019419,2]
[373379938,1752977441906,-460.0,0.0001942,2]
[373379939,1752977441915,-531.22,0.0001942,2]
[373379940,1752977441925,-709.70765003,0.00019421,2]
[373379941,1752977441934,-1000.0,0.00019421,2]
[373379942,1752977441944,-1004.86519393,0.00019421,2]
[373379943,1752977441953,-151.0,0.00019421,2]
[373379944,1752977441962,-151.0,0.00019465,2]
[373379945,1752977441972,-151.0,0.00019465,2]
[373379946,1752977441981,-157.181478,0.00019465,2]
[373379947,1752977441991,-151.0,0.00019465,2]
[373379948,1752977442000,-151.0,0.00019465,2]
[373379949,1752977442010,-298.133821,0.00019465,2]
[373379950,1752977442019,-298.133821,0.00019465,2]
[373379951,1752977442029,-267.564017,0.00019465,2]
[373379952,1752977442038,-270.495979,0.00019465,2]
[373379953,1752977442047,-270.495979,0.00019465,2]
[373379954,1752977442057,-151.0,0.00019465,2]
[373379955,1752977442066,-169.45616085,0.00019602,2]
[373379956,1752977442076,-151.0,0.00019624,2]
[373379957,1752977442085,-151.0,0.00019624,2]
[373379958,1752977442095,-151.0,0.00019624,2]
[373379959,1752977442104,-414.694755,0.00019624,2]
[373379960,1752977442114,-414.694755,0.00019624,2]
[373379961,1752977442123,-8585.20437225,0.00019624,2]
[373379962,1752977442133,-460.0,0.00019666,2]
[373379963,1752977442142,-151.0,0.00019666,2]
[373379964,1752977442151,-714.49,0.00019667,2]
[373379965,1752977442161,-460.0,0.00019667,2]
[373379966,1752977442170,-741.54,0.00019667,2]
[373379967,1752977442180,-1329.16,0.00019667,2]
[373379968,1752977442189,-473.50366505,0.00019667,2]
[373379969,1752977442198,-460.0,0.00019667,2]
[373379970,1752977442208,-348.10325896,0.00019668,2]
[373379971,1752977442217,-164.60040062,0.00019668,2]
[373379972,1752977442226,-152.27942809,0.00019668,2]
[373379973,1752977442240,-460.0,0.00019668,2]
[373379974,1752977442249,-460.0,0.00019668,2]
[373379975,1752977442260,-460.0,0.00019668,2]
[373379976,1752977442269,-460.0,0.00019668,2]
[373379977,1752977442279,-230.98123516,0.0001968,2]
[373379978,1752977442288,-214.5637056,0.0001968,2]
[373379979,1752977442298,-12615.16111038,0.0001968,2]
[373379980,1752977442310,-215.71456056,0.0001968,2]
[373379981,1752977442319,-160.0,0.0001968,2]
[373379982,1752977442329,-160.0,0.0001968,2]
[373379983,1752977442338,-160.0,0.0001968,2]
[373379984,1752977442347,-525.91036056,0.0001968,2]
[373379985,1752977442356,-160.0,0.0001968,2]
[373379986,1752977442365,-160.0,0.0001968,2]
[373379987,1752977442374,-160.0,0.0001968,2]
[373379988,1752977442383,-839.59621281,0.0001968,2]
[373379989,1752977442393,-476.42619115,0.0001968,2]
[373379990,1752977442404,-701.2,0.00019688,2]
[373379991,1752977442414,-523.82,0.00019688,2]
[373379992,1752977442423,-151.0,0.00019689,2]
[373379993,1752977442433,-151.0,0.00019689,2]
[373379994,1752977442442,-151.0,0.00019689,2]
[373379995,1752977442451,-460.0,0.00019689,2]
[373379996,1752977442461,-470.83,0.00019689,2]
[373379997,1752977442470,-151.0,0.00019689,2]
[373379998,1752977442479,-151.0,0.00019689,2]
[373379999,1752977442489,-460.0,0.00019689,2]
[373380000,1752977442498,-225.870134,0.00019689,2]
[373380001,1752977442507,-225.870134,0.00019689,2]
[373380002,1752977442516,-460.0,0.0001969,2]
[373380003,1752977442525,-460.0,0.0001969,2]
[373380004,1752977442535,-707.43,0.00019691,2]
[373380005,1752977442544,-1381.59,0.00019691,2]
[373380006,1752977442554,-460.0,0.00019691,2]
[373380007,1752977442563,-513.6,0.00019692,2]
[373380008,1752977442573,-460.0,0.00019694,2]
[373380009,1752977442582,-531.22,0.00019694,2]
[373380010,1752977442592,-303.20879103,0.00019721,2]
[373380011,1752977442601,-151.0,0.00019865,2]
[373380012,1752977442610,-8585.20437225,0.00019866,2]
[373380013,1752977442619,-460.0,0.0001994,2]
[373380014,1752977442629,-714.49,0.00019941,2]
[373380015,1752977442638,-174.74724837,0.00019941,2]
[373380016,1752977442647,-741.54,0.00019941,2]
[373380017,1752977442656,-1329.16,0.00019941,2]
[373380018,1752977442666,-460.0,0.00019941,2]
[373380019,1752977442675,-460.0,0.00019942,2]
[373380020,1752977442686,-190.36018853,0.00019942,2]
[373380021,1752977442696,-460.0,0.00019942,2]
[373380022,1752977442706,-460.0,0.00019942,2]
[373380029,1752977442823,-479.7,0.00019953,3]
[373380031,1752977442834,-701.2,0.00019962,2]
[373380033,1752977442843,-523.82,0.00019962,2]
[373380034,1752977442853,-441.53016635,0.00019963,2]
[373380035,1752977442863,-470.83,0.00019963,2]
[373380037,1752977442873,-460.0,0.00019963,2]
[373380040,1752977442883,-500.0,0.00019963,2]
[373380042,1752977442892,-500.0,0.00019963,2]
[373380044,1752977442902,-550.66,0.00019964,2]
[373380046,1752977442911,-460.0,0.00019964,2]
[373380048,1752977442920,-173.942307,0.00019964,2]
[373380050,1752977442930,-173.942307,0.00019964,2]
[373380052,1752977442939,-151.0,0.00019964,2]
[373380055,1752977442949,-151.0,0.00019964,2]
[373380057,1752977442958,-336.431934,0.00019964,2]
[373380059,1752977442968,-707.43,0.00019965,2]
[373380061,1752977442977,-1381.59,0.00019965,2]
[373380063,1752977442986,-460.0,0.00019965,2]
[373380065,1752977442995,-513.6,0.00019966,2]
[373380067,1752977443005,-460.0,0.00019968,2]
[373380069,1752977443014,-531.22,0.00019968,2]
[373380071,1752977443024,-1524.9251022,0.00019968,2]
[373380073,1752977443033,-152.444124,0.00019969,2]
[373380075,1752977443042,-500.0,0.00019971,2]
[373380077,1752977443052,-500.0,0.00019971,2]
[373380080,1752977443062,-8585.20437225,0.00020107,2]
[373380083,1752977443071,-420.0,0.00020169,2]
[373380086,1752977443080,-151.775212,0.00020177,2]
[373380088,1752977443089,-160.0,0.000202,2]
[373380090,1752977443099,-460.0,0.00020214,2]
[373380092,1752977443108,-714.49,0.00020215,2]
[373380094,1752977443118,-741.54,0.00020215,2]
[373380096,1752977443127,-1329.16,0.00020215,2]
[373380098,1752977443136,-460.0,0.00020215,2]
[373380100,1752977443145,-308.28565607,0.00020216,2]
[373380102,1752977443155,-460.0,0.00020216,2]
[373380104,1752977443164,-460.0,0.00020216,2]
[373380106,1752977443173,-701.2,0.00020236,2]
[373380108,1752977443183,-523.82,0.00020236,2]
[373380110,1752977443192,-470.83,0.00020237,2]
[373380112,1752977443200,-460.0,0.00020237,2]
[373380114,1752977443209,-460.0,0.00020238,2]
[373380116,1752977443218,-707.43,0.00020239,2]
[373380118,1752977443227,-1381.59,0.00020239,2]
[373380119,1752977443241,-460.0,0.00020239,2]
[373380120,1752977443249,-151.0,0.0002024,2]
[373380121,1752977443259,-151.0,0.0002024,2]
[373380122,1752977443267,-151.0,0.0002024,2]
[373380123,1752977443277,-151.0,0.0002024,2]
[373380124,1752977443286,-513.6,0.0002024,2]
[373380125,1752977443295,-298.133821,0.0002024,2]
[373380126,1752977443308,-298.133821,0.0002024,2]
[373380127,1752977443317,-270.495979,0.0002024,2]
[373380128,1752977443326,-270.495979,0.0002024,2]
[373380129,1752977443336,-151.0,0.0002024,2]
[373380130,1752977443345,-460.0,0.00020242,2]
[373380131,1752977443354,-531.22,0.00020242,2]
[373380132,1752977443363,-500.0,0.00020245,2]
[373380133,1752977443372,-500.0,0.00020245,2]
[373380134,1752977443382,-189.644247,0.00020348,2]
[373380135,1752977443391,-8585.20437225,0.00020348,3]
[373380136,1752977443400,-214.5637056,0.0002035,3]
[373380137,1752977443409,-460.0,0.00020488,2]
[373380138,1752977443419,-714.49,0.00020489,2]
[373380139,1752977443428,-741.54,0.00020489,2]
[373380140,1752977443437,-1329.16,0.00020489,2]
[373380141,1752977443446,-151.0,0.00020489,2]
[373380142,1752977443455,-151.0,0.00020489,2]
[373380144,1752977443464,-225.870134,0.00020489,2]
[373380146,1752977443473,-225.870134,0.00020489,2]
[373380148,1752977443482,-460.0,0.00020489,2]
[373380150,1752977443491,-151.0,0.0002049,2]
[373380152,1752977443501,-460.0,0.0002049,2]
[373380154,1752977443511,-414.694755,0.0002049,2]
[373380156,1752977443520,-414.694755,0.0002049,2]
[373380158,1752977443529,-460.0,0.0002049,2]
[373380160,1752977443538,-701.2,0.0002051,2]
[373380162,1752977443548,-523.82,0.0002051,2]
[373380164,1752977443557,-470.83,0.00020511,2]
[373380166,1752977443566,-460.0,0.00020511,2]
[373380168,1752977443575,-460.0,0.00020512,2]
[373380169,1752977443585,-707.43,0.00020513,2]
[373380171,1752977443594,-1381.59,0.00020513,2]
[373380173,1752977443603,-460.0,0.00020513,2]
[373380175,1752977443612,-151.0,0.00020514,2]
[373380177,1752977443621,-151.0,0.00020514,2]
[373380178,1752977443630,-151.0,0.00020514,2]
[373380180,1752977443639,-513.6,0.00020514,2]
[373380183,1752977443649,-460.0,0.00020516,2]
[373380185,1752977443659,-531.22,0.00020516,2]
[373380187,1752977443668,-500.0,0.00020519,2]
[373380189,1752977443677,-500.0,0.00020519,2]
[373380191,1752977443687,-151.0,0.00020521,2]
[373380193,1752977443697,-282.652838,0.00020521,2]
[373380195,1752977443706,-500.0,0.00020547,2]
[373380197,1752977443715,-500.0,0.00020547,2]
[373380199,1752977443725,-500.0,0.00020547,2]
[373380201,1752977443734,-500.0,0.00020547,2]
[373380203,1752977443743,-500.0,0.00020547,2]
[373380205,1752977443752,-500.0,0.00020547,2]
[373380207,1752977443761,-500.0,0.00020547,2]
[373380209,1752977443770,-500.0,0.00020547,2]
[373380211,1752977443779,-160.6051998,0.00020583,2]
[373380213,1752977443789,-8585.20437225,0.0002059,3]
[373380215,1752977443798,-151.0,0.0002059,2]
[373380217,1752977443808,-215.0738,0.00020726,2]
[373380219,1752977443818,-169.45616085,0.00020733,2]
[373380221,1752977443827,-260.0,0.00020748,2]
[373380223,1752977443837,-460.0,0.00020762,2]
[373380225,1752977443846,-500.0,0.00020763,2]
[373380227,1752977443856,-714.49,0.00020763,2]
[373380229,1752977443866,-741.54,0.00020763,2]
[373380231,1752977443875,-1329.16,0.00020763,2]
[373380233,1752977443885,-460.0,0.00020763,2]
[373380235,1752977443895,-460.0,0.00020764,2]
[373380237,1752977443904,-460.0,0.00020764,2]
[373380239,1752977443913,-1160.425,0.00020778,2]
[373380241,1752977443923,-178.70934786,0.00020778,2]
[373380242,1752977443932,-701.2,0.00020784,2]
[373380243,1752977443942,-523.82,0.00020784,2]
[373380244,1752977443951,-173.942307,0.00020785,2]
[373380245,1752977443962,-173.942307,0.00020785,2]
[373380246,1752977443971,-151.0,0.00020785,2]
[373380247,1752977443981,-151.0,0.00020785,2]
[373380248,1752977443990,-336.431934,0.00020785,2]
[373380249,1752977444000,-470.83,0.00020785,2]
[373380250,1752977444009,-460.0,0.00020785,2]
[373380251,1752977444018,-460.0,0.00020786,2]
[373380252,1752977444028,-707.43,0.00020787,2]
[373380253,1752977444037,-1381.59,0.00020787,2]
[373380254,1752977444046,-460.0,0.00020787,2]
[373380255,1752977444056,-513.6,0.00020788,2]
[373380256,1752977444066,-151.462523,0.0002079,2]
[373380257,1752977444076,-151.0,0.0002079,2]
[373380258,1752977444085,-151.0,0.0002079,2]
[373380259,1752977444094,-460.0,0.0002079,2]
[373380260,1752977444104,-531.22,0.0002079,2]
[373380261,1752977444114,-500.0,0.00020793,2]
[373380262,1752977444123,-266.86276745,0.00020793,2]
[373380263,1752977444132,-8585.20437225,0.00020831,4]
[373380264,1752977444141,-303.20879103,0.00020948,2]
[373380265,1752977444150,-1485.07005,0.00021,2]
[373380266,1752977444159,-460.0,0.00021036,2]
[373380267,1752977444168,-500.0,0.00021037,2]
[373380268,1752977444178,-714.49,0.00021037,2]
[373380269,1752977444187,-741.54,0.00021037,2]
[373380270,1752977444196,-1329.16,0.00021037,2]
[373380271,1752977444205,-460.0,0.00021037,2]
[373380272,1752977444214,-460.0,0.00021038,2]
[373380273,1752977444223,-460.0,0.00021038,2]
[373380274,1752977444236,-701.2,0.00021058,2]
[373380275,1752977444250,-523.82,0.00021058,2]
[373380276,1752977444260,-470.83,0.00021059,2]
[373380277,1752977444269,-460.0,0.00021059,2]
[373380278,1752977444279,-433.7395544,0.0002106,2]
[373380279,1752977444288,-152.685262,0.0002106,2]
[373380280,1752977444297,-298.133821,0.0002106,2]
[373380281,1752977444306,-298.133821,0.0002106,2]
[373380282,1752977444319,-270.495979,0.0002106,2]
[373380283,1752977444329,-270.495979,0.0002106,2]
[373380284,1752977444338,-151.0,0.0002106,2]
[373380285,1752977444347,-707.43,0.00021061,2]
[373380286,1752977444356,-1381.59,0.00021061,2]
[373380287,1752977444365,-460.0,0.00021061,2]
[373380288,1752977444374,-513.6,0.00021062,2]
[373380289,1752977444383,-500.0,0.00021064,2]
[373380290,1752977444392,-460.0,0.00021064,2]
[373380291,1752977444402,-531.22,0.00021064,2]
[373380292,1752977444412,-500.0,0.00021067,2]
[373380293,1752977444424,-151.0,0.00021072,2]
[373380294,1752977444434,-151.0,0.00021072,2]
[373380295,1752977444443,-225.870134,0.00021072,2]
[373380296,1752977444452,-225.870134,0.00021072,2]
[373380297,1752977444461,-8585.20437225,0.00021072,4]
[373380298,1752977444470,-153.898566,0.00021084,2]
[373380299,1752977444480,-414.694755,0.00021084,2]
[373380300,1752977444490,-414.694755,0.00021084,2]
[373380301,1752977444499,-306.0,0.00021151,2]
[373380302,1752977444508,-500.0,0.00021231,2]
[373380303,1752977444517,-2768.68631956,0.00021263,2]
[373380304,1752977444526,-360.0,0.00021296,2]
[373380305,1752977444535,-460.0,0.0002131,2]
[373380306,1752977444544,-500.0,0.00021311,2]
[373380307,1752977444553,-714.49,0.00021311,2]
[373380308,1752977444562,-741.54,0.00021311,2]
[373380309,1752977444571,-1329.16,0.00021311,2]
[373380310,1752977444580,-460.0,0.00021311,2]
[373380311,1752977444589,-579.14249376,0.00021312,2]
[373380312,1752977444601,-286.01,0.00021312,2]
[373380313,1752977444611,-8585.20437225,0.00021314,5]
[373380314,1752977444620,-701.2,0.00021332,2]
[373380315,1752977444629,-523.82,0.00021332,2]
[373380316,1752977444638,-151.0,0.00021333,2]
[373380317,1752977444647,-470.83,0.00021333,2]
[373380318,1752977444656,-460.0,0.00021333,2]
[373380319,1752977444665,-445.38763467,0.00021333,2]
[373380320,1752977444674,-500.0,0.00021333,2]
[373380321,1752977444684,-707.43,0.00021335,2]
[373380322,1752977444693,-1381.59,0.00021335,2]
[373380323,1752977444702,-460.0,0.00021335,2]
[373380324,1752977444717,-513.6,0.00021336,2]
[373380325,1752977444727,-460.0,0.00021338,2]
[373380326,1752977444737,-531.22,0.00021338,2]
[373380327,1752977444747,-500.0,0.00021341,2]
[373380328,1752977444756,-687.1056588,0.00021342,2]
[373380329,1752977444766,-500.0,0.00021346,2]
[373380330,1752977444775,-151.0,0.00021348,2]
[373380331,1752977444785,-151.0,0.00021348,2]
[373380332,1752977444794,-151.0,0.00021348,2]
[373380333,1752977444804,-151.0,0.00021348,2]
[373380334,1752977444814,-500.0,0.0002145,2]
[373380335,1752977444824,-500.0,0.0002145,2]
[373380336,1752977444833,-500.0,0.0002145,2]
[373380337,1752977444843,-429.3901486,0.00021479,2]
[373380338,1752977444852,-863.7814482,0.00021479,2]